Workbook

Sheet Data
E2: مسودة رصد الاختبارات الشهرية والنهائية للفصلين للعام الدراسي | W2: 2021-2020 | AA2: للصف | AD2: الأول | AJ2: للصف ( الأول )
A4: م | B4: اسم الطالب | C4: النوع | D4: الجنسية | E4: القرآن الكريم | K4: التربية الإسلامية | Q4: اللغة العربية | W4: الرياضيات | AC4: العلوم
E5: اكتوبر | F5: نوفمبر | G5: نهائي الفصل | H5: يناير | I5: فبراير | J5: نهائي العام | K5: اكتوبر | L5: نوفمبر | M5: نهائي الفصل | N5: يناير | O5: فبراير | P5: نهائي العام | Q5: اكتوبر | R5: نوفمبر | S5: نهائي الفصل | T5: يناير | U5: فبراير | V5: نهائي العام | W5: اكتوبر | X5: نوفمبر | Y5: نهائي الفصل | Z5: يناير | AA5: فبراير | AB5: نهائي العام | AC5: اكتوبر | AD5: نوفمبر | AE5: نهائي الفصل | AF5: يناير | AG5: فبراير | AH5: نهائي العام
E6: 100 | F6: 100 | G6: 30 | H6: 100 | I6: 100 | J6: 30 | K6: 100 | L6: 100 | M6: 30 | N6: 100 | O6: 100 | P6: 30 | Q6: 100 | R6: 100 | S6: 30 | T6: 100 | U6: 100 | V6: 30 | W6: 100 | X6: 100 | Y6: 30 | Z6: 100 | AA6: 100 | AB6: 30 | AC6: 100 | AD6: 100 | AE6: 30 | AF6: 100 | AG6: 100 | AH6: 30
A7: 1 | B7: تالين وهبي محمد الصهيبي | C7: أنثى | D7: يمنية | E7: 70 | F7: 66 | G7: 30 | K7: 74 | L7: 66 | M7: 30 | Q7: 95 | R7: 96 | S7: 30 | W7: 63 | X7: 72 | Y7: 30 | AC7: 84 | AD7: 71 | AE7: 30
A8: 2 | B8: حسين زبن الله حسين دوح | C8: ذكر | D8: يمني | E8: 90 | F8: 61 | G8: 30 | K8: 68 | L8: 74 | M8: 30 | Q8: 85 | R8: 65 | S8: 30 | W8: 60 | X8: 83 | Y8: 30 | AC8: 72 | AD8: 82 | AE8: 30
A9: 3 | B9: حنين ناصر علي معيض | C9: أنثى | D9: يمنية | E9: 95 | F9: 100 | G9: 30 | K9: 94 | L9: 81 | M9: 30 | Q9: 84 | R9: 81 | S9: 30 | W9: 92 | X9: 62 | Y9: 30 | AC9: 60 | AD9: 88 | AE9: 30
A10: 4 | B10: رؤى صالح سالم معيض | C10: أنثى | D10: يمنية | E10: 78 | F10: 95 | G10: 28 | K10: 66 | L10: 81 | M10: 25 | Q10: 95 | R10: 73 | S10: 30 | W10: 68 | X10: 96 | Y10: 30 | AC10: 89 | AD10: 87 | AE10: 28
A11: 5 | B11: سعيد محمد سالم بجنف | C11: ذكر | D11: يمني | E11: 96 | F11: 82 | G11: 30 | K11: 96 | L11: 82 | M11: 30 | Q11: 98 | R11: 75 | S11: 30 | W11: 93 | X11: 97 | Y11: 30 | AC11: 71 | AD11: 79 | AE11: 30
A12: 6 | B12: سند عبدالله صالح لنقس | C12: ذكر | D12: يمني | E12: 98 | F12: 85 | G12: 30 | K12: 77 | L12: 99 | M12: 30 | Q12: 100 | R12: 96 | S12: 30 | W12: 99 | X12: 77 | Y12: 29 | AC12: 99 | AD12: 81 | AE12: 28
A13: 7 | B13: طالب أنور حامد معيض | C13: ذكر | D13: يمني | E13: 80 | F13: 91 | G13: 30 | K13: 93 | L13: 85 | M13: 30 | Q13: 74 | R13: 95 | S13: 30 | W13: 66 | X13: 86 | Y13: 30 | AC13: 77 | AD13: 100 | AE13: 30
A14: 8 | B14: عماد ماجد مبارك حقروص | C14: ذكر | D14: يمني | E14: 67 | F14: 79 | G14: 30 | K14: 69 | L14: 95 | M14: 30 | Q14: 60 | R14: 78 | S14: 30 | W14: 92 | X14: 63 | Y14: 29 | AC14: 92 | AD14: 61 | AE14: 30
A15: 9 | B15: ناصر أحمد ناصر جلعوم | C15: ذكر | D15: يمني | E15: 76 | F15: 78 | G15: 25 | K15: 89 | L15: 98 | M15: 30 | Q15: 76 | R15: 99 | S15: 30 | W15: 64 | X15: 89 | Y15: 29 | AC15: 70 | AD15: 100 | AE15: 28
A16: 10 | B16: يوسف محمد سعيد حقروص | C16: ذكر | D16: يمني | E16: 84 | F16: 70 | G16: 30 | K16: 68 | L16: 72 | M16: 27 | Q16: 91 | R16: 83 | S16: 30 | W16: 85 | X16: 64 | Y16: 30 | AC16: 71 | AD16: 63 | AE16: 30

Sheet Source
C1: 1 | D1: 2 | E1: 3 | F1: 4 | G1: 5 | H1: 6 | I1: 7 | J1: 8 | K1: 9 | L1: 10 | M1: 11 | N1: 12 | O1: 13 | P1: 14 | Q1: 15 | R1: 16 | S1: 17
D4: كشوفات رصد درجات أعمال وامتحانات الفصل الدراسي الأول في المرحلة الأساسية للعام الدراسي 2020 - 2021م
A6: رقم مسلسل | B6: اســـــــم الطالـــب | C6: القرآن الكريم | F6: التربية الإسلامية | I6: اللغة العربية | L6: الرياضيات | O6: العلوم | R6: المجموع الكلي | S6: نتيجة الفصل الأول | W6: الملاحظات
C7: محصلة الفصل الأول | D7: امتحان الفصل الأول | E7: المجموع | F7: محصلة الفصل الأول | G7: امتحان الفصل الأول | H7: المجموع | I7: محصلة الفصل الأول | J7: امتحان الفصل الأول | K7: المجموع | L7: محصلة الفصل الأول | M7: امتحان الفصل الأول | N7: المجموع | O7: محصلة الفصل الأول | P7: امتحان الفصل الأول | Q7: المجموع | V7: الترتيب
C8: 20 | D8: 30 | E8: 50 | F8: 20 | G8: 30 | H8: 50 | I8: 20 | J8: 30 | K8: 50 | L8: 20 | M8: 30 | N8: 50 | O8: 20 | P8: 30 | Q8: 50 | R8: 250
A9: 1 | B9: =Data!B7 -> تالين وهبي محمد الصهيبي | C9: =(Data!E7+Data!F7)/10 -> 13.6 | D9: =(Data!F7+Data!G7)/10 -> 9.6 | E9: =SUM(C9:D9) -> 23.2 | F9: =(Data!K7+Data!L7)/10 -> 14 | G9: =(Data!L7+Data!M7)/10 -> 9.6 | H9: =SUM(F9:G9) -> 23.6 | I9: =(Data!Q7+Data!R7)/10 -> 19.1 | J9: =(Data!R7+Data!S7)/10 -> 12.6 | K9: =SUM(I9:J9) -> 31.7 | L9: =(Data!W7+Data!X7)/10 -> 13.5 | M9: =(Data!X7+Data!Y7)/10 -> 10.2 | N9: =SUM(L9:M9) -> 23.7 | O9: =(Data!AC7+Data!AD7)/10 -> 15.5 | P9: =(Data!AD7+Data!AE7)/10 -> 10.1 | Q9: =SUM(O9:P9) -> 25.6 | R9: =SUM(Q9,N9,K9,H9,E9) -> 127.8 | S9: =IF(AND(Q9>=25,N9>=25,K9>=25,H9>=25,E9>=25),"ناجح","راسب") -> راسب | U9: =SUMPRODUCT((R9<=$R$9:$R$18)/COUNTIF($R$9:$R$18,$R$9:$R$18)) -> 8 | V9: =IF(S9="راسب","راسب",Order_Salim(U9)) -> راسب
A10: 2 | B10: =Data!B8 -> حسين زبن الله حسين دوح | C10: =(Data!E8+Data!F8)/10 -> 15.1 | D10: =(Data!F8+Data!G8)/10 -> 9.1 | E10: =SUM(C10:D10) -> 24.2 | F10: =(Data!K8+Data!L8)/10 -> 14.2 | G10: =(Data!L8+Data!M8)/10 -> 10.4 | H10: =SUM(F10:G10) -> 24.6 | I10: =(Data!Q8+Data!R8)/10 -> 15 | J10: =(Data!R8+Data!S8)/10 -> 9.5 | K10: =SUM(I10:J10) -> 24.5 | L10: =(Data!W8+Data!X8)/10 -> 14.3 | M10: =(Data!X8+Data!Y8)/10 -> 11.3 | N10: =SUM(L10:M10) -> 25.6 | O10: =(Data!AC8+Data!AD8)/10 -> 15.4 | P10: =(Data!AD8+Data!AE8)/10 -> 11.2 | Q10: =SUM(O10:P10) -> 26.6 | R10: =SUM(Q10,N10,K10,H10,E10) -> 125.5 | S10: =IF(AND(Q10>=25,N10>=25,K10>=25,H10>=25,E10>=25),"ناجح","راسب") -> راسب | U10: =SUMPRODUCT((R10<=$R$9:$R$18)/COUNTIF($R$9:$R$18,$R$9:$R$18)) -> 9 | V10: =IF(S10="راسب","راسب",Order_Salim(U10)) -> راسب
A11: 3 | B11: =Data!B9 -> حنين ناصر علي معيض | C11: =(Data!E9+Data!F9)/10 -> 19.5 | D11: =(Data!F9+Data!G9)/10 -> 13 | E11: 32.5 | F11: =(Data!K9+Data!L9)/10 -> 17.5 | G11: =(Data!L9+Data!M9)/10 -> 11.1 | H11: 28.6 | I11: =(Data!Q9+Data!R9)/10 -> 16.5 | J11: =(Data!R9+Data!S9)/10 -> 11.1 | K11: 27.6 | L11: =(Data!W9+Data!X9)/10 -> 15.4 | M11: =(Data!X9+Data!Y9)/10 -> 9.2 | N11: 24.6 | O11: =(Data!AC9+Data!AD9)/10 -> 14.8 | P11: =(Data!AD9+Data!AE9)/10 -> 11.8 | Q11: 26.6 | R11: 139.9 | S11: راسب | U11: =SUMPRODUCT((R11<=$R$9:$R$18)/COUNTIF($R$9:$R$18,$R$9:$R$18)) -> 6 | V11: راسب
A12: 4 | B12: =Data!B10 -> رؤى صالح سالم معيض | C12: =(Data!E10+Data!F10)/10 -> 17.3 | D12: =(Data!F10+Data!G10)/10 -> 12.3 | E12: 29.6 | F12: =(Data!K10+Data!L10)/10 -> 14.7 | G12: =(Data!L10+Data!M10)/10 -> 10.6 | H12: 25.3 | I12: =(Data!Q10+Data!R10)/10 -> 16.8 | J12: =(Data!R10+Data!S10)/10 -> 10.3 | K12: 27.1 | L12: =(Data!W10+Data!X10)/10 -> 16.4 | M12: =(Data!X10+Data!Y10)/10 -> 12.6 | N12: 29 | O12: =(Data!AC10+Data!AD10)/10 -> 17.6 | P12: =(Data!AD10+Data!AE10)/10 -> 11.5 | Q12: 29.1 | R12: 140.1 | S12: ناجح | U12: =SUMPRODUCT((R12<=$R$9:$R$18)/COUNTIF($R$9:$R$18,$R$9:$R$18)) -> 5 | V12: الخامس
A13: 5 | B13: =Data!B11 -> سعيد محمد سالم بجنف | C13: =(Data!E11+Data!F11)/10 -> 17.8 | D13: =(Data!F11+Data!G11)/10 -> 11.2 | E13: 29 | F13: =(Data!K11+Data!L11)/10 -> 17.8 | G13: =(Data!L11+Data!M11)/10 -> 11.2 | H13: 29 | I13: =(Data!Q11+Data!R11)/10 -> 17.3 | J13: =(Data!R11+Data!S11)/10 -> 10.5 | K13: 27.8 | L13: =(Data!W11+Data!X11)/10 -> 19 | M13: =(Data!X11+Data!Y11)/10 -> 12.7 | N13: 31.7 | O13: =(Data!AC11+Data!AD11)/10 -> 15 | P13: =(Data!AD11+Data!AE11)/10 -> 10.9 | Q13: 25.9 | R13: 143.4 | S13: ناجح | U13: =SUMPRODUCT((R13<=$R$9:$R$18)/COUNTIF($R$9:$R$18,$R$9:$R$18)) -> 4 | V13: الرّابع
A14: 6 | B14: =Data!B12 -> سند عبدالله صالح لنقس | C14: =(Data!E12+Data!F12)/10 -> 18.3 | D14: =(Data!F12+Data!G12)/10 -> 11.5 | E14: 29.8 | F14: =(Data!K12+Data!L12)/10 -> 17.6 | G14: =(Data!L12+Data!M12)/10 -> 12.9 | H14: 30.5 | I14: =(Data!Q12+Data!R12)/10 -> 19.6 | J14: =(Data!R12+Data!S12)/10 -> 12.6 | K14: 32.2 | L14: =(Data!W12+Data!X12)/10 -> 17.6 | M14: =(Data!X12+Data!Y12)/10 -> 10.6 | N14: 28.2 | O14: =(Data!AC12+Data!AD12)/10 -> 18 | P14: =(Data!AD12+Data!AE12)/10 -> 10.9 | Q14: 28.9 | R14: 149.6 | S14: ناجح | U14: =SUMPRODUCT((R14<=$R$9:$R$18)/COUNTIF($R$9:$R$18,$R$9:$R$18)) -> 1 | V14: الأوّل
A15: 7 | B15: =Data!B13 -> طالب أنور حامد معيض | C15: =(Data!E13+Data!F13)/10 -> 17.1 | D15: =(Data!F13+Data!G13)/10 -> 12.1 | E15: 29.2 | F15: =(Data!K13+Data!L13)/10 -> 17.8 | G15: =(Data!L13+Data!M13)/10 -> 11.5 | H15: 29.3 | I15: =(Data!Q13+Data!R13)/10 -> 16.9 | J15: =(Data!R13+Data!S13)/10 -> 12.5 | K15: 29.4 | L15: =(Data!W13+Data!X13)/10 -> 15.2 | M15: =(Data!X13+Data!Y13)/10 -> 11.6 | N15: 26.8 | O15: =(Data!AC13+Data!AD13)/10 -> 17.7 | P15: =(Data!AD13+Data!AE13)/10 -> 13 | Q15: 30.7 | R15: 145.4 | S15: ناجح | U15: =SUMPRODUCT((R15<=$R$9:$R$18)/COUNTIF($R$9:$R$18,$R$9:$R$18)) -> 2 | V15: الثّاني
A16: 8 | B16: =Data!B14 -> عماد ماجد مبارك حقروص | C16: =(Data!E14+Data!F14)/10 -> 14.6 | D16: =(Data!F14+Data!G14)/10 -> 10.9 | E16: 25.5 | F16: =(Data!K14+Data!L14)/10 -> 16.4 | G16: =(Data!L14+Data!M14)/10 -> 12.5 | H16: 28.9 | I16: =(Data!Q14+Data!R14)/10 -> 13.8 | J16: =(Data!R14+Data!S14)/10 -> 10.8 | K16: 24.6 | L16: =(Data!W14+Data!X14)/10 -> 15.5 | M16: =(Data!X14+Data!Y14)/10 -> 9.2 | N16: 24.7 | O16: =(Data!AC14+Data!AD14)/10 -> 15.3 | P16: =(Data!AD14+Data!AE14)/10 -> 9.1 | Q16: 24.4 | R16: 128.1 | S16: راسب | U16: =SUMPRODUCT((R16<=$R$9:$R$18)/COUNTIF($R$9:$R$18,$R$9:$R$18)) -> 7 | V16: راسب
A17: 9 | B17: =Data!B15 -> ناصر أحمد ناصر جلعوم | C17: =(Data!E15+Data!F15)/10 -> 15.4 | D17: =(Data!F15+Data!G15)/10 -> 10.3 | E17: 25.7 | F17: =(Data!K15+Data!L15)/10 -> 18.7 | G17: =(Data!L15+Data!M15)/10 -> 12.8 | H17: 31.5 | I17: =(Data!Q15+Data!R15)/10 -> 17.5 | J17: =(Data!R15+Data!S15)/10 -> 12.9 | K17: 30.4 | L17: =(Data!W15+Data!X15)/10 -> 15.3 | M17: =(Data!X15+Data!Y15)/10 -> 11.8 | N17: 27.1 | O17: =(Data!AC15+Data!AD15)/10 -> 17 | P17: =(Data!AD15+Data!AE15)/10 -> 12.8 | Q17: 29.8 | R17: 144.5 | S17: ناجح | U17: =SUMPRODUCT((R17<=$R$9:$R$18)/COUNTIF($R$9:$R$18,$R$9:$R$18)) -> 3 | V17: الثّالث
A18: 10 | B18: =Data!B16 -> يوسف محمد سعيد حقروص | C18: =(Data!E16+Data!F16)/10 -> 15.4 | D18: =(Data!F16+Data!G16)/10 -> 10 | E18: 25.4 | F18: =(Data!K16+Data!L16)/10 -> 14 | G18: =(Data!L16+Data!M16)/10 -> 9.9 | H18: 23.9 | I18: =(Data!Q16+Data!R16)/10 -> 17.4 | J18: =(Data!R16+Data!S16)/10 -> 11.3 | K18: 28.7 | L18: =(Data!W16+Data!X16)/10 -> 14.9 | M18: =(Data!X16+Data!Y16)/10 -> 9.4 | N18: 24.3 | O18: =(Data!AC16+Data!AD16)/10 -> 13.4 | P18: =(Data!AD16+Data!AE16)/10 -> 9.3 | Q18: 22.7 | R18: 125 | S18: راسب | U18: =SUMPRODUCT((R18<=$R$9:$R$18)/COUNTIF($R$9:$R$18,$R$9:$R$18)) -> 10 | V18: راسب
B20: راجعه وصحح الأسماء والدرجات | H20: مدير المدرسة | P20: يعتمد / مدير إدارة التربية والتعليم م/ عتق
H22: الختم والتوقيع | Q22: الختم والتوقيع

Sheet Cerificats
H1: Choose Name
K3: سعيد محمد سالم بجنف
B5: اشعار بنتيجة الطالبــ / ــة للفصل الدراسي الأول للعام 2020 - 2021 م
B7: اسم الطالبــ / ــة | C7: =$K$3 -> سعيد محمد سالم بجنف | G7: الصف | H7: =Data!AD2 -> الأول
B9: المواد الدراسية | C9: القرآن الكريم | D9: التربية الإسلامية | E9: اللغة العربية | F9: الرياضيات | G9: العلوم | H9: المجموع
B10: 20 | C10: =ROUND(INDEX(Source!$C$9:$Q$18,MATCH(Cerificats!$K$3,Source!$B$9:$B$100,0),1),0) -> 18 | D10: =ROUND(INDEX(Source!$C$9:$Q$18,MATCH(Cerificats!$K$3,Source!$B$9:$B$100,0),4),0) -> 18 | E10: =ROUND(INDEX(Source!$C$9:$Q$18,MATCH(Cerificats!$K$3,Source!$B$9:$B$100,0),7),0) -> 17 | F10: =ROUND(INDEX(Source!$C$9:$Q$18,MATCH(Cerificats!$K$3,Source!$B$9:$B$100,0),10),0) -> 19 | G10: =ROUND(INDEX(Source!$C$9:$Q$18,MATCH(Cerificats!$K$3,Source!$B$9:$B$100,0),13),0) -> 15
B11: 30 | C11: =ROUND(INDEX(Source!$C$9:$Q$18,MATCH(Cerificats!$K$3,Source!$B$9:$B$100,0),2),0) -> 11 | D11: =ROUND(INDEX(Source!$C$9:$Q$18,MATCH(Cerificats!$K$3,Source!$B$9:$B$100,0),5),0) -> 11 | E11: =ROUND(INDEX(Source!$C$9:$Q$18,MATCH(Cerificats!$K$3,Source!$B$9:$B$100,0),8),0) -> 11 | F11: =ROUND(INDEX(Source!$C$9:$Q$18,MATCH(Cerificats!$K$3,Source!$B$9:$B$100,0),11),0) -> 13 | G11: =ROUND(INDEX(Source!$C$9:$Q$18,MATCH(Cerificats!$K$3,Source!$B$9:$B$100,0),14),0) -> 11
B12: 50 | C12: =SUM(C10:C11) -> 29 | D12: =SUM(D10:D11) -> 29 | E12: 28 | F12: 32 | G12: =SUM(C12:F12) -> 118 | H12: =INDEX(Source!$R$9:$R$18,MATCH(Cerificats!$K$3,Source!$B$9:$B$100,0)) -> 143.4
B14: المجموع كتابة
B15: النتيجة | C15: =INDEX(Source!$S$9:$S$18,MATCH(Cerificats!$K$3,Source!$B$9:$B$100,0)) -> ناجح | G15: الترتيب | H15: =INDEX(Source!$V$9:$V$18,MATCH(Cerificats!$K$3,Source!$B$9:$B$100,0)) -> الرّابع
B18: توقيع ولي الأمر | E18: توقيع مربي الصف | G18: ختم المدرسة
